Cogmind - Beta 16.1 @@@ ROGUE MODE // 2026.05.01 @ 23:26:45 Player: shockman27 Result: Destroyed by D-53 Grenadier with Mini Grenade Launcher Performance ------------- Evolutions (0) 0 Regions Visited (3) 600 Robots Destroyed (62) 310 Value Destroyed (1248) 1248 Prototype IDs (2) 40 Alien Tech Used (0) 0 Bonus (-29) -29 TOTAL SCORE: 2169 Bonus ------- Friendly Fire -29 Cogmind --------- Core Integrity 0/250 Matter 167/300 Energy 200/200 System Corruption 0% Temperature Cool (20) Movement Treading (160) Location -9/Recycling Parts ------- > --- POWER (1) -------- Subdweller Power Source > --- PROPULSION (2) --- Light Treads Light Treads > --- UTILITY (2) ------ Large Storage Unit > --- WEAPON (2) ------- Battle Rifle Battle Rifle > --- INVENTORY (15) --- Subdweller Power Source Light Treads Cooling System High-capacity Matter Pod (200) Seismic Detector ECM Suite Makeshift Hacking Suite Tractor Beam Particle Cannon Subdweller Beam Cannon Battle Rifle Battle Cannon Grenade Launcher Subdweller Shrapnel Launcher Makeshift Axe Peak State ------------ > --- POWER ------------ Improved Ion Engine > --- PROPULSION ------- Light Treads Spiked Treads > --- UTILITY ---------- Large Storage Unit Medium Armor Plating > --- WEAPON ----------- Battle Rifle Makeshift Axe > --- INVENTORY -------- Light Treads Light Treads Light Treads Light Treads Cooling System High-capacity Matter Pod Seismic Detector ECM Suite Medium Armor Plating Tractor Beam Heavy EM Pulse Gun Heavy EM Pulse Gun Particle Cannon Assault Rifle Grenade Launcher [Rating: 16] Favorites ----------- Power Improved Ion Engine Engine Improved Ion Engine Propulsion Light Treads Treads Light Treads Utility Large Storage Unit Device Seismic Detector Storage Large Storage Unit Protection Medium Armor Plating Weapon Assault Rifle Energy Gun Heavy EM Pulse Gun Energy Cannon Particle Cannon Ballistic Gun Assault Rifle Ballistic Cannon Battle Cannon Launcher Subdweller Shrapnel Launcher Impact Weapon Hammer Slashing Weapon Makeshift Axe Build | -11 -10 -10 -9 ------- Run | Yrd Mat Sub Rec Slots Evolved . | . . . . Power . | . . . . Propulsion . | . . . . Utility . | . . . . Weapon . | . . . . Parts Attached 41 | 8 15 18 . Power 8 | 1 2 5 . Engine 8 | 1 2 5 . Core . | . . . . Reactor . | . . . . Propulsion 6 | 2 1 3 . Treads 6 | 2 1 3 . Leg . | . . . . Wheel . | . . . . Hover . | . . . . Flight . | . . . . Utility 7 | 2 4 1 . Device 1 | 1 . . . Storage 2 | 1 1 . . Processor . | . . . . Hackware . | . . . . Protection 4 | . 3 1 . Artifact . | . . . . Weapon 20 | 3 8 9 . Energy Gun 5 | 1 4 . . Energy Cannon 1 | . 1 . . Ballistic Gun 8 | 2 2 4 . Ballistic Cannon 1 | . . 1 . Launcher 3 | . 1 2 . Special Weapon . | . . . . Impact Weapon 1 | . . 1 . Slashing Weapon 1 | . . 1 . Piercing Weapon . | . . . . Special Melee Weapon . | . . . . Unidentified Prototypes . | . . . . Parts Lost 6 | . . 6 . Power 2 | . . 2 . Propulsion 2 | . . 2 . Utility 2 | . . 2 . Weapon . | . . . . Highest Loss Streak 2 | . . 2 . To Critical Strikes . | . . . . Average Backups 13 | 3 12 14 15 Power . | . 1 . 1 Propulsion 2 | 1 2 2 1 Utility 5 | . 4 5 6 Weapon 4 | . 4 5 7 Tool/Special . | . . . . Unused Backups 17 | . 8 1 8 Power 2 | . 2 . . Propulsion 5 | . 4 . 1 Utility 5 | . . . 5 Weapon 5 | . 2 1 2 Tool/Special . | . . . . Average Slot Usage (%) 97 | . 99 97 85 Engine 13 | . 14 13 14 Treads 27 | . 27 28 28 Storage 14 | . 14 14 14 Protection 11 | . 12 11 . Energy Gun 7 | . 13 2 . Energy Cannon 3 | . 1 5 . Ballistic Gun 12 | . 12 11 25 Launcher 2 | . . 3 2 Peak Build Rating 16 | 7 12 16 11 Average Rating 11 | 5 10 12 11 On Entrance 7 | . 7 12 11 Avg Prop Armor Cover (%) . | . . . . Naked Turns . | . . . . Heaviest Build 43 | 15 41 43 35 Greatest Support 40 | 40 40 40 40 Greatest Overweight (x) 1 | . 1 1 . Average Overweight (x) . | . . . . Largest Inventory Capacity 15 | 8 15 15 15 Average Capacity 14 | 7 13 15 15 Most Carried 15 | 5 15 15 15 Average Carried 13 | 3 12 14 15 Final Capacity 15 | 8 15 15 15 Final Carried 15 | 5 15 15 15 Class Distribution -------------------- 100% | Mutant Dominant Class ---------------- Mutant | -10/Materials Mutant | -10/Subcaves Mutant | -9/Recycling Resources | -11 -10 -10 -9 ----------- Run | Yrd Mat Sub Rec Matter Collected 1798 | 244 736 644 174 Remotely . | . . . . Salvage Created 1681 | 34 915 544 188 Parts 112 | 7 63 33 9 Haulers Intercepted 2 | . 2 . . Recyclers Shooed 3 | 1 1 . 1 Parts Field Recycled . | . . . . Retrieved Matter . | . . . . Parts Self-Destructed 14 | . . 14 . Prevented . | . . . . Parts Restored . | . . . . Kills | -11 -10 -10 -9 ------- Run | Yrd Mat Sub Rec Combat Hostiles Destroyed 41 | . 19 22 . Melee 1 | . . 1 . Guns 14 | . 10 4 . Cannons 4 | . . 4 . AOE 22 | . 9 13 . Classes Destroyed 12 | 1 8 3 . Worker 4 | . 4 . . Builder 3 | . 2 . 1 Tunneler 2 | 2 . . . Hauler 2 | . 2 . . Recycler 5 | . 3 . 2 Operator 1 | . 1 . . Turret 2 | . . 2 . Watcher 2 | . 2 . . Swarmer 18 | . 12 6 . Grunt 7 | . 7 . . Sentry 1 | . . 1 . Subdweller 15 | . . 15 . Best Kill Streak 6 | 2 5 6 3 Combat Bots Only 4 | . 3 4 . Max Kills in Single Turn 4 | 1 4 3 1 Gunslinging . | . . . . Exploded 3 | . 2 3 . Melee 1 | . . 1 . Uniques/NPCs Destroyed . | . . . . Combat | -11 -10 -10 -9 -------- Run | Yrd Mat Sub Rec Hostile Shots Fired 206 | . 54 147 5 Missed 72 | . 11 60 1 Hits 134 | . 43 87 4 Projectile 134 | . 43 87 4 AOE 5 | . . . 5 Critical Strikes 3 | . 1 2 . Damage Taken 2088 | . 506 1426 156 Core 255 | . 45 174 36 Absorbed by Shields . | . . . . Regen/Repaired (Parts) 106 | . 106 . . Core Remaining (%) 100 | 100 . . . Volleys Fired 168 | 6 62 90 10 Largest 2 | 2 2 2 2 Hottest 113 | 70 90 113 50 Shots Fired 285 | 12 118 135 20 Gun 198 | 12 112 54 20 Cannon 53 | . . 53 . Launcher 34 | . 6 28 . Special . | . . . . Kinetic 164 | 6 72 66 20 Thermal 56 | 6 . 50 . Explosive 18 | . 6 12 . Electromagnetic 47 | . 40 7 . Robot Hit Streak 13 | 3 7 13 12 Robot Miss Streak 5 | 2 5 3 2 Penetration Max . | . . . . Secondary Targets 3 | . 2 1 . Max Gunslinging Chain 1 | . 1 1 . Shots Hit Robots 159 | 7 65 73 14 Core Hits 97 | 3 42 48 4 Critical Kills . | . . . . Critical Parts Destroyed 1 | . 1 . . Critical Strikes 2 | 1 1 . . Burn 1 | 1 . . . Destroy 1 | . 1 . . Melee Attacks 39 | . . 39 . Impact 20 | . . 20 . Slashing 19 | . . 19 . Piercing . | . . . . Sneak Attacks . | . . . . Combat Hostiles . | . . . . Follow-up Attacks . | . . . . Damage Inflicted 5216 | 85 1621 3307 203 Guns 1630 | 85 968 374 203 Cannons 431 | . . 431 . Explosions 2478 | . 615 1863 . Melee 639 | . . 639 . Ramming 38 | . 38 . . Kinetic 2235 | 47 579 1406 203 Thermal 563 | 38 48 477 . Explosive 1299 | . 567 732 . Electromagnetic 442 | . 389 53 . Impact 28 | . . 28 . Slashing 611 | . . 611 . Piercing . | . . . . Highest Corruption . | . . . . Average Corruption . | . . . . Corruption Purged . | . . . . Corruption Blocked . | . . . . Overload Shots . | . . . . Overflow Damage 75 | . 56 19 . Projectiles . | . . . . Explosions 73 | . 54 19 . Melee 2 | . 2 . . Knockbacks 1 | . 1 . . Impact 1 | . 1 . . Kinetic . | . . . . Secondary . | . . . . Self-Inflicted Damage 146 | . . 146 . Shots 7 | . . 7 . Rammed 6 | . 5 1 . Targets Rammed 8 | . 7 1 . Kicked . | . . . . Crushed 2 | . 2 . . Highest Temperature 252 | 27 252 40 20 Average Temperature 59 | 14 86 11 9 Received Heat Transfer 261 | . 126 135 . Effects 2 | . 2 . . Interference 2 | . 2 . . Siege Activations . | . . . . Martial Activations . | . . . . Shielding Activations . | . . . . Robots Disrupted . | . . . . Combat Hostiles . | . . . . Robots Corrupted 1 | . 1 . . Combat Hostiles . | . . . . Parts Fried 2 | . 2 . . Impact Corruptions 1 | . 1 . . Robots Melted . | . . . . Combat Hostiles . | . . . . Parts Melted . | . . . . Heat Transferred 975 | 185 . 790 . Parts Sabotaged . | . . . . Parts Stolen . | . . . . Parts Stripped . | . . . . Power Chain Reactions 2 | . 1 1 . Alert | -11 -10 -10 -9 ------- Run | Yrd Mat Sub Rec Maximum Alert Level 1 | . 1 . . Low Security (%) 71 | 100 68 . 100 Level 1 28 | . 31 . . Level 2 . | . . . . Level 3 . | . . . . Level 4 . | . . . . Level 5 . | . . . . High Security . | . . . . Max Security . | . . . . Peak Influence 288 | 5 288 . 10 Initial . | . . . . Average 123 | . 137 . 1 Influence Increases 1128 | 10 837 265 16 Destroy 0b10 Robot/C 560 | . 380 180 . Destroy 0b10 Robot/NC 95 | 10 70 . 15 Destroy Leader 88 | . 78 10 . Successful Hack 22 | . 22 . . Select Force Hacks 60 | . 60 . . Disable Machine 15 | . 15 . . Destroy Structure 48 | . 47 . 1 Lose Combat Pursuer 240 | . 165 75 . Influence Decreases 1127 | 10 561 541 15 Entered New Map 133 | . . 133 . Time Decay 979 | 10 561 393 15 Lost Part 15 | . . 15 . Squads Dispatched 3 | . 3 . . Investigation 2 | . 2 . . Extermination . | . . . . Reinforcement 1 | . 1 . . Assault . | . . . . Garrison . | . . . . Intercept . | . . . . Searches Triggered . | . . . . Construction Impeded . | . . . . Haulers Reinforced . | . . . . Active Scanning Responses . | . . . . Cargo Convoy Interrupts . | . . . . Stealth | -11 -10 -10 -9 --------- Run | Yrd Mat Sub Rec Distress Signals 3 | . 2 . 1 Communications Jammed . | . . . . Distress Signals . | . . . . Times Spotted 76 | . 49 26 1 Peak Tracking Total 6 | . 5 6 1 Tactical Retreats 13 | . 11 2 . Traps | -11 -10 -10 -9 ------- Run | Yrd Mat Sub Rec Traps Triggered 2 | . 2 . . Indirectly . | . . . . Trap Hack Attempts . | . . . . Triggered . | . . . . Disarmed . | . . . . Reprogrammed . | . . . . Reused . | . . . . Traps Extracted . | . . . . Installed . | . . . . Triggered . | . . . . Machines | -11 -10 -10 -9 ---------- Run | Yrd Mat Sub Rec Machines Disabled 4 | . 1 3 . Max in Single Turn 1 | . 1 1 . Machines Repaired . | . . . . Machines Dismantled . | . . . . Machines Sabotaged . | . . . . Overloaded Fab Kills . | . . . . Hacking | -11 -10 -10 -9 --------- Run | Yrd Mat Sub Rec Machines Accessed 13 | . 10 1 2 Terminals 9 | . 7 . 2 Fabricators . | . . . . Repair Stations 1 | . 1 . . Recycling Units 2 | . 2 . . Scanalyzers . | . . . . Garrison Access . | . . . . Total Hacks 42 | . 32 4 6 Successful 26 | . 21 4 1 Failed 15 | . 10 . 5 Catastrophic 1 | . . . 1 Database Lockouts 1 | . 1 . . Manual 27 | . 24 . 3 Terminals 30 | . 24 . 6 Fabricators . | . . . . Repair Stations 4 | . 4 . . Recycling Units 4 | . 4 . . Scanalyzers . | . . . . Garrison Access . | . . . . Terminal Hacks 10 | . 5 4 1 Record 4 | . . 4 . Robot Analysis 1 | . 1 . . Prototype ID Bank 1 | . 1 . . Locate Traps 2 | . 2 . . Hauler Manifests 2 | . 1 . 1 Fabricator Hacks . | . . . . Repair Station Hacks 4 | . 4 . . Scan Component 2 | . 2 . . Repair 2 | . 2 . . Recycling Unit Hacks . | . . . . Scanalyzer . | . . . . Garrison Access Hacks . | . . . . Unauthorized Hacks 12 | . 12 . . Terminals 10 | . 10 . . Track 1 | . 1 . . Botnet 4 | . 4 . . Skim 5 | . 5 . . Fabricators . | . . . . Repair Stations . | . . . . Recycling Units 2 | . 2 . . Tunnel 2 | . 2 . . Scanalyzers . | . . . . Garrison Access . | . . . . Data Cores Recovered . | . . . . Used . | . . . . Hacking Detections 7 | . 5 . 2 Full Trace Events . | . . . . Feedback Events . | . . . . Feedback Blocked . | . . . . Robot Schematics Acquired . | . . . . Robots Built . | . . . . Authchips . | . . . . Time . | . . . . Total Robot Build Rating . | . . . . Part Schematics Acquired . | . . . . Parts Built . | . . . . Authchips . | . . . . Time . | . . . . Total Part Build Rating . | . . . . Part Studies Acquired . | . . . . Parts Repaired 2 | . 2 . . Time 52 | . 52 . . Parts Recycled . | . . . . Recycled Matter . | . . . . Retrieved Matter . | . . . . Retrieved Components . | . . . . Parts Scanalyzed . | . . . . Part Schematics Acquired . | . . . . Parts Damaged . | . . . . Bothacking | -11 -10 -10 -9 ------------ Run | Yrd Mat Sub Rec Used RIF Installer . | . . . . Robots Hacked . | . . . . Non-combat . | . . . . Combat . | . . . . Robot Hacks Applied . | . . . . Relay Couplers Released . | . . . . Fabnet Peak Effective % . | . . . . Robots Rewired . | . . . . Allies Hacked . | . . . . Hacks Repelled . | . . . . Allies | -11 -10 -10 -9 -------- Run | Yrd Mat Sub Rec Total Allies . | . . . . Largest Group . | . . . . Highest-Rated Group . | . . . . Highest-Rated Ally . | . . . . Total Orders . | . . . . Ally Attacks . | . . . . Total Damage . | . . . . Kills . | . . . . Allies Corrupted . | . . . . Allies Melted . | . . . . Intel | -11 -10 -10 -9 ------- Run | Yrd Mat Sub Rec Active Infowar (turns) 206 | 15 191 . . Seismic 206 | 15 191 . . Robot Analysis Total 1 | . 1 . . Derelict Logs Recovered . | . . . . Drone Launches . | . . . . Drone Recoveries . | . . . . Exploration | -11 -10 -10 -9 ------------- Run | Yrd Mat Sub Rec Turns Passed 4989 | 113 2201 2539 136 Spaces Moved 2517 | 55 1114 1281 67 Core 8 | 8 . . . Treads 2509 | 47 1114 1281 67 Legs . | . . . . Wheels . | . . . . Hover . | . . . . Flight . | . . . . Fastest Speed 50 | 50 160 160 160 Average Speed 167 | 144 167 168 160 Slowest Speed 250 | 160 240 250 160 Overloaded Moves . | . . . . Propulsion Burnouts . | . . . . Robots Hopped . | . . . . Potential Cave-ins . | . . . . Cave-ins Triggered . | . . . . Exploration Rate (%) 44 | 3 99 61 16 Regions Visited 3 Branch Regions 2 Pre-discovered Areas 2 | . 2 . . Known Exits Taken 2 | . 1 1 . Unknown Exits Taken 1 | 1 . . . Scrap Searched 4 | . . 4 . Spaces Dug 16 | . . 16 . Terrain Destroyed 280 | . 48 232 . Melee 10 | . . 10 . Projectile 7 | . . 7 . AOE 263 | . 48 215 . Terrain Rammed . | . . . . Walls Destroyed . | . . . . Machines Disabled . | . . . . Actions | -11 -10 -10 -9 --------- Run | Yrd Mat Sub Rec Total 2951 | 73 1334 1466 78 Wait 86 | . 84 2 . Move 2514 | 54 1113 1280 67 Hop . | . . . . Pick Up 38 | 5 24 9 . Fast Attach 12 | 7 2 3 . Attach 5 | . 1 4 . Detach 1 | . . 1 . Swap 46 | 1 19 25 1 Drop 34 | . 22 12 . Fire 168 | 6 62 90 10 Melee 39 | . . 39 . Ram . | . . . . Kick . | . . . . Crush 8 | . 7 1 . Escape Stasis . | . . . . Rewire . | . . . . Trap . | . . . . Miscellaneous . | . . . . Route ------- -11/Scrapyard -10/Materials (discovered 6 exits: [*Mat x3] / [*Min x2] / *Sub) -10/Subcaves (discovered 2 exits: [*Mat] / *Rec) -9/Recycling (discovered 2 exits: Fac / Scr) History --------- Turn | Location | Event 9 | -11/Scrapyard | Discovered new exit (range 15) 114 | -11/Scrapyard | Entered Materials 317 | -10/Materials | Build established: Mutant 412 | -10/Materials | Discovered new exit (range 16) 491 | -10/Materials | Discovered new exit (range 16) 845 | -10/Materials | Discovered new exit (range 16) 1079 | -10/Materials | Discovered new exit (range 13) 1091 | -10/Materials | Discovered new exit (range 13) 1454 | -10/Materials | Central database locked down 1637 | -10/Materials | Learned 4 Recycling zone layouts 1644 | -10/Materials | Repaired Lgt. Treads 1672 | -10/Materials | Repaired Lgt. Treads 1679 | -10/Materials | Loaded intel: 9 trap records 1711 | -10/Materials | Loaded intel: 2 recycling unit locations 1735 | -10/Materials | Learned Materials recycling unit intel 1748 | -10/Materials | Identified exit to Subcaves 1757 | -10/Materials | Learned 4 Subcaves zone layouts 1774 | -10/Materials | Learned Storage trap positions 2315 | -10/Materials | Entered Subcaves 2316 | -10/Subcaves | Approached by a straggling Scientist 2316 | -10/Subcaves | Identified exit to Recycling 2564 | -10/Subcaves | Ambushed by Subdweller buried in earth 2632 | -10/Subcaves | A swath of the cavern ceiling suddenly collapsed 2731 | -10/Subcaves | Discovered new exit (range 7) 2749 | -10/Subcaves | Disturbed a concealed Subdweller 2794 | -10/Subcaves | Ambushed by Subdweller buried in earth 3112 | -10/Subcaves | Disturbed a concealed Subdweller 3183 | -10/Subcaves | Visited Clippyterm 3188 | -10/Subcaves | Learned Factory trap positions 3273 | -10/Subcaves | Shifting Twisted Machinery released Battle Rifle 3279 | -10/Subcaves | Shifting Twisted Machinery released Sub. Machine Gun 3293 | -10/Subcaves | Shifting Twisted Machinery released Mak. Axe 3346 | -10/Subcaves | Shifting Twisted Machinery released Battle Cannon 3430 | -10/Subcaves | Core integrity fell below 50% 3817 | -10/Subcaves | Shifting Twisted Machinery released Mak. Hacking Suite 3926 | -10/Subcaves | Shifting Twisted Machinery released Sub. Power Source 4367 | -10/Subcaves | Core integrity fell below 20% 4444 | -10/Subcaves | A swath of the cavern ceiling suddenly collapsed 4854 | -10/Subcaves | Entered Recycling 4855 | -9/Recycling | Identified exit to Factory 4855 | -9/Recycling | Identified exit to Scraptown 4990 | -9/Recycling | Destroyed by D-53 Grenadier with Mini Grenade Launcher Last Messages --------------- Loading 4 Recycling zones... 04907_ Connecting with Terminal... >>Manifests Retrieving manifest data... Found 1 hauler: A-02 Transporter (Empty) 04943_ R-06 Scavenger destroyed. 04952_ Acquired 91 matter. 04954_ R-06 Scavenger collects Sml. Storage Unit. 04963_ U-05 Engineer destroyed. 04966_ R-06 Scavenger destroyed. 04966_ R-06 Scavenger sends out distress signal. 04970_ Acquired 83 matter. 04980_ Connecting with Terminal... 04982_ Terminal disabled. 04982_ Transfer Shaft disabled. 04986_ L-31 Rogue destroyed. 04988_ R-06 Scavenger destroyed. 04989_ Compression Vault explodes. Map ----- +----------------------------------------------------+ | # # # ?????????????????????????????? | | # # "" """ + ?????????????????????????????? | | + + "Y """ ##?????????????????????????????? | | # # "" """ #??????????????????????????????? | | # # #??????????????????????????????? | | # # #??????????????????????????????? | | # # #??????????????????????????????? | | # # #??????????????????????????????? | | ###############??????????????????????????????? | | #?????????????????????????? ?????????????????? | | #?????????????????????????? ?????????????????? | | #?????????????????????????# ?????????????????? | | #?????????????????????????#|####?????????????? | | ??????????????????????????????#%= #?????????????? | | ??????????????????????????????#!= #?????????????? | | ??????????????????????????????#! #?????????????? | | ??????????????????????????????# #?????????????? | | ????????????????############### #?????????????? | | ?????????????????g! g Yl a # #?????????????? | | ??????????????????! d!ld u + +?????????????? | | ???????????????????=usdhg/= # #?????????????? | | ????????????????????i!r % Y # #?????????????? | | ????????????????????##/ ## #?????????????? | | ????????????????##### # #?????????????? | | ????????????????# * # ####??????????? | | ???????????# %@ =d #??????????? | | ?????????????""" ! = ##### #??????????? | | ?????????????""" #???# #??????????? | | ??????????????"" ##;#####+#??????????? | | ????????????? "" # #??????????? | | ????????????### """ # "" """#??????????? | | ??????????????## + "T """#??????????? | | ???????????????#### ## # "" """#??????????? | | ??????????????????##?# ### # #??????????? | | ?????????????????????# ??# # """#??????????? | | ?????????????????????# ??# # """#??????????? | | ?????????????????????# ??#r# """#??????????? | | ?????????????????????# ???# # #??????????? | | #??# + ? ???# ##########??????????? | | #??## ####?#?????# #???????????????????? | | #???# #??????????# ######??????????????? | | #???# #??????????# ##!!!#??????????????? | | ########+##+############## ##!!!######?????????? | | #?????????? | | #?????????? | | #?????????? | | ##"Y"###### ############################?????????? | | ?#"""#????###????????????????????????????????????? | | ?#####???????????????????????????????????????????? | | ?????????????????????????????????????????????????? | +----------------------------------------------------+ Best States ------------- Heat Dissipation 25 Energy Generation 15 Energy Capacity 265 Matter Stores 300 Matter Capacity 300 Sight Range 16 Terrain Scan Density 10 Armor Coverage 225 Evasion (%) 40 Recoil Reduction 2 Item Schematics ----------------- None Robot Schematics ------------------ None Fabricated ------------ Nothing Repaired ---------- Lgt. Treads | 59% | -10/Materials Lgt. Treads | 65% | -10/Materials Studied --------- None Alien Tech Used ----------------- None Achievements -------------- None Challenges ------------ None Game ------ Seed TripodArmorTether Manual? 0 Play Time 00:27:37 Cumulative 250.8 hours Start 2026.05.01 @ 23:00:06 End 2026.05.01 @ 23:26:45 Sessions 1 Manual Loads 0 Difficulty Rogue Special Mode None Game No. 125 Rogue 121 Adventurer 4 Explorer 0 Win Type - Total 6 Types 3/0/1/1/0/0/0/1/0/0 Lore% 77 Gallery% 65 Achievement% 51 Wizard Run 0 Options --------- Layout 0 ASCII 0 Keyboard 1 Movement Vi Keybinds 0 Fullscreen 1 Font 24/Crisp Map View 76x50 Zoom Use 0% Tactical HUD 1 Map Filters NONE Filters NONE Steam 1 RUN: 6568ab2b-b21b-4851-86aa-835b14f67d54